[Event "*** Titled Tuesday Blitz"]
[Site "Chess.com"]
[Date "2018.08.07"]
[Round "7"]
[White "Carolina-moon"]
[Black "senecacrane"]
[Result "0-1"]
[WhiteElo "2135"]
[BlackElo "2127"]
[TimeControl "180+2"]
[EndTime "14:32:49 PDT"]
[Termination "senecacrane won by resignation"]

1. e4 {[%clk 0:03:01.9]} 1... c6 {[%clk 0:03:00.8]} 2. c4 {[%clk 0:03:00.3]}
2... d5 {[%clk 0:03:01.4]} 3. exd5 {[%clk 0:02:59.6]} 3... cxd5 {[%clk
0:03:03.3]} 4. cxd5 {[%clk 0:03:00.7]} 4... Nf6 {[%clk 0:03:04]} 5. Qa4+ {[%clk
0:03:01.6]} 5... Nbd7 {[%clk 0:03:02.9]} 6. Nc3 {[%clk 0:03:02]} 6... a6 {[%clk
0:02:49.2]} 7. Nf3 {[%clk 0:02:59.9]} 7... g6 {[%clk 0:02:47.6]} 8. Qb3 {[%clk
0:02:27.1]} 8... b5 {[%clk 0:02:44.7]} 9. a4 {[%clk 0:02:22.6]} 9... Nc5 {[%clk
0:02:34.1]} 10. Qc2 {[%clk 0:02:10.7]} 10... Bf5 {[%clk 0:02:27.5]} 11. d3
{[%clk 0:02:00.3]} 11... Nxd5 {[%clk 0:02:18.2]} 12. axb5 {[%clk 0:01:58.1]}
12... Nb4 {[%clk 0:02:11.7]} 13. Qd1 {[%clk 0:01:59.1]} 13... Nbxd3+ {[%clk
0:02:11.4]} 14. Bxd3 {[%clk 0:02:00]} 14... Nxd3+ {[%clk 0:02:12.8]} 15. Kf1
{[%clk 0:02:00.4]} 15... axb5 {[%clk 0:01:54.6]} 16. Rxa8 {[%clk 0:01:57.9]}
16... Qxa8 {[%clk 0:01:56.1]} 17. Nxb5 {[%clk 0:01:47.1]} 17... Qc6 {[%clk
0:01:11]} 18. Nc3 {[%clk 0:01:31.3]} 18... Qc4 {[%clk 0:01:10]} 19. Kg1 {[%clk
0:01:22.3]} 19... Bg7 {[%clk 0:01:07.5]} 20. Bd2 {[%clk 0:01:08.2]} 20... O-O
{[%clk 0:01:02.9]} 21. h3 {[%clk 0:01:06.8]} 21... Nxb2 {[%clk 0:01:02.4]} 22.
Qe1 {[%clk 0:00:58.4]} 22... Nd3 {[%clk 0:00:55.7]} 23. Qa1 {[%clk 0:00:47]}
23... Rc8 {[%clk 0:00:49.3]} 24. Kh2 {[%clk 0:00:36.7]} 24... Bxc3 {[%clk
0:00:47]} 25. Bxc3 {[%clk 0:00:37.9]} 25... Qxc3 {[%clk 0:00:47.7]} 26. Qa6
{[%clk 0:00:35.4]} 26... Qc7+ {[%clk 0:00:45]} 27. g3 {[%clk 0:00:27.7]} 27...
Nxf2 {[%clk 0:00:44.2]} 28. Rf1 {[%clk 0:00:25.1]} 28... Ne4 {[%clk 0:00:44.5]}
29. Rg1 {[%clk 0:00:22.9]} 29... h5 {[%clk 0:00:42.8]} 30. h4 {[%clk 0:00:20.7]}
30... Bg4 {[%clk 0:00:40.6]} 31. Qd3 {[%clk 0:00:20.4]} 31... Qc2+ {[%clk
0:00:38.8]} 32. Kh1 {[%clk 0:00:20.4]} 32... Qxd3 {[%clk 0:00:39]} 0-1

[Event "*** Titled Tuesday Blitz"]
[Site "Chess.com"]
[Date "2018.08.07"]
[Round "7"]
[White "Martins-BR"]
[Black "JoakimVonAnd"]
[Result "0-1"]
[WhiteElo "2312"]
[BlackElo "2380"]
[TimeControl "180+2"]
[EndTime "14:33:11 PDT"]
[Termination "JoakimVonAnd won by resignation"]

1. e4 {[%clk 0:03:01.9]} 1... c6 {[%clk 0:03:00.2]} 2. d4 {[%clk 0:03:01.1]}
2... d5 {[%clk 0:03:02.1]} 3. e5 {[%clk 0:03:00.7]} 3... Bf5 {[%clk 0:03:03.1]}
4. h4 {[%clk 0:03:01.2]} 4... h5 {[%clk 0:03:02.1]} 5. Bd3 {[%clk 0:02:59.1]}
5... Bxd3 {[%clk 0:03:01.5]} 6. Qxd3 {[%clk 0:03:01]} 6... e6 {[%clk 0:03:02.6]}
7. Bg5 {[%clk 0:03:01.4]} 7... Qa5+ {[%clk 0:03:03.4]} 8. Nd2 {[%clk 0:03:02.4]}
8... Qa6 {[%clk 0:03:04.4]} 9. c4 {[%clk 0:03:03.3]} 9... Nd7 {[%clk 0:03:05.5]}
10. Ngf3 {[%clk 0:02:54.2]} 10... Ne7 {[%clk 0:03:05.8]} 11. O-O {[%clk
0:02:51.8]} 11... f6 {[%clk 0:02:59.1]} 12. exf6 {[%clk 0:02:47.5]} 12... gxf6
{[%clk 0:03:01]} 13. Be3 {[%clk 0:02:47]} 13... O-O-O {[%clk 0:03:00.3]} 14. Qc2
{[%clk 0:02:46.1]} 14... e5 {[%clk 0:02:57.4]} 15. dxe5 {[%clk 0:02:35.5]} 15...
fxe5 {[%clk 0:02:54.2]} 16. cxd5 {[%clk 0:02:30.4]} 16... Nxd5 {[%clk 0:02:55]}
17. Bg5 {[%clk 0:02:31.4]} 17... Re8 {[%clk 0:02:53.4]} 18. Rfe1 {[%clk
0:02:29]} 18... Bc5 {[%clk 0:02:50]} 19. Qf5 {[%clk 0:02:17.4]} 19... Rhf8
{[%clk 0:02:44.3]} 20. Qh3 {[%clk 0:02:17.5]} 20... Qb6 {[%clk 0:02:39.4]} 21.
Ne4 {[%clk 0:02:15.4]} 21... Bxf2+ {[%clk 0:02:27.7]} 22. Nxf2 {[%clk 0:02:15]}
22... e4 {[%clk 0:02:29]} 23. Nd4 {[%clk 0:01:49.8]} 23... Qxd4 {[%clk
0:02:25.4]} 24. Be3 {[%clk 0:01:50.7]} 24... Nxe3 {[%clk 0:02:25.1]} 25. Qxe3
{[%clk 0:01:51.1]} 25... Qxe3 {[%clk 0:02:18.5]} 26. Rxe3 {[%clk 0:01:50.7]}
26... Rf4 {[%clk 0:02:10.7]} 27. g3 {[%clk 0:01:46.5]} 27... Rf3 {[%clk
0:02:08]} 28. Rae1 {[%clk 0:01:41.2]} 28... Rxe3 {[%clk 0:02:05.8]} 29. Rxe3
{[%clk 0:01:41.4]} 29... Nf6 {[%clk 0:02:07.3]} 30. Kg2 {[%clk 0:01:37]} 30...
Kd7 {[%clk 0:02:07.5]} 31. a4 {[%clk 0:01:27]} 31... Kd6 {[%clk 0:02:08.4]} 32.
a5 {[%clk 0:01:25.7]} 32... Kd5 {[%clk 0:02:09.4]} 33. Rb3 {[%clk 0:01:17.9]}
33... e3 {[%clk 0:02:06.7]} 34. Nd3 {[%clk 0:01:18.8]} 34... Kc4 {[%clk
0:02:01.4]} 35. Rc3+ {[%clk 0:01:19.3]} 35... Kd4 {[%clk 0:02:02.6]} 36. Ne1
{[%clk 0:01:08.7]} 36... Nd5 {[%clk 0:01:55.9]} 37. Rb3 {[%clk 0:01:07.8]} 37...
b5 {[%clk 0:01:55.7]} 38. axb6 {[%clk 0:01:07.2]} 38... axb6 {[%clk 0:01:55.6]}
39. Kf3 {[%clk 0:01:06.5]} 39... Rf8+ {[%clk 0:01:55.1]} 40. Kg2 {[%clk
0:01:02.8]} 40... Rf2+ {[%clk 0:01:55.7]} 41. Kg1 {[%clk 0:01:02.7]} 41... Rd2
{[%clk 0:01:50.8]} 42. Nf3+ {[%clk 0:01:02.4]} 42... Ke4 {[%clk 0:01:52]} 43.
Ng5+ {[%clk 0:00:58.7]} 43... Kf5 {[%clk 0:01:52.6]} 44. Nf3 {[%clk 0:00:58.3]}
44... Rd1+ {[%clk 0:01:46.9]} 45. Kg2 {[%clk 0:00:58.6]} 45... Ke4 {[%clk
0:01:44]} 46. Ng5+ {[%clk 0:00:58.2]} 46... Kd4 {[%clk 0:01:44.7]} 47. Kf3
{[%clk 0:00:53.7]} 47... Rf1+ {[%clk 0:01:41.5]} 48. Ke2 {[%clk 0:00:50.6]}
48... Rf2+ {[%clk 0:01:42.5]} 49. Ke1 {[%clk 0:00:51]} 49... Rg2 {[%clk
0:01:43.4]} 50. Ne6+ {[%clk 0:00:51.3]} 50... Ke4 {[%clk 0:01:38.4]} 51. Ng5+
{[%clk 0:00:50]} 51... Kf5 {[%clk 0:01:38.9]} 52. Rd3 {[%clk 0:00:44.7]} 52...
Rxg3 {[%clk 0:01:37.9]} 53. b3 {[%clk 0:00:35.7]} 53... Rg1+ {[%clk 0:01:38.4]}
0-1

[Event "*** Titled Tuesday Blitz"]
[Site "Chess.com"]
[Date "2018.08.07"]
[Round "7"]
[White "Orest_Vovk"]
[Black "LucaBrasi1968"]
[Result "1/2-1/2"]
[WhiteElo "2329"]
[BlackElo "2467"]
[TimeControl "180+2"]
[EndTime "14:33:13 PDT"]
[Termination "Game drawn by agreement"]

1. g4 {[%clk 0:03:01.9]} 1... d5 {[%clk 0:02:49.8]} 2. h3 {[%clk 0:03:02]} 2...
c6 {[%clk 0:02:50.7]} 3. Bg2 {[%clk 0:03:03.9]} 3... h5 {[%clk 0:02:50.8]} 4. g5
{[%clk 0:03:04.1]} 4... Bf5 {[%clk 0:02:51.7]} 5. d4 {[%clk 0:03:04.7]} 5... e6
{[%clk 0:02:52.8]} 6. Bf4 {[%clk 0:03:05.3]} 6... Bd6 {[%clk 0:02:52.3]} 7. Bxd6
{[%clk 0:03:05.1]} 7... Qxd6 {[%clk 0:02:52.8]} 8. c3 {[%clk 0:03:07]} 8... Nd7
{[%clk 0:02:52.8]} 9. Nf3 {[%clk 0:03:07.2]} 9... Ne7 {[%clk 0:02:48.3]} 10. Qb3
{[%clk 0:03:03.1]} 10... O-O-O {[%clk 0:02:47.8]} 11. Qa3 {[%clk 0:03:02]} 11...
Qxa3 {[%clk 0:02:46.3]} 12. Nxa3 {[%clk 0:03:03.8]} 12... Kc7 {[%clk 0:02:42]}
13. Rc1 {[%clk 0:03:02.5]} 13... b5 {[%clk 0:02:41.6]} 14. Nc2 {[%clk
0:03:03.1]} 14... Kd6 {[%clk 0:02:40.8]} 15. Ne3 {[%clk 0:03:03.6]} 15... Be4
{[%clk 0:02:41.5]} 16. Nh4 {[%clk 0:03:03.5]} 16... Bxg2 {[%clk 0:02:27.8]} 17.
Nhxg2 {[%clk 0:03:05.4]} 17... g6 {[%clk 0:02:25.4]} 18. Kd2 {[%clk 0:03:03.5]}
18... e5 {[%clk 0:02:22.5]} 19. f4 {[%clk 0:02:51.6]} 19... exf4 {[%clk
0:01:50.3]} 20. Nxf4 {[%clk 0:02:50.9]} 20... f6 {[%clk 0:01:51.3]} 21. h4
{[%clk 0:02:29.2]} 21... fxg5 {[%clk 0:01:50]} 22. hxg5 {[%clk 0:02:31.1]} 22...
Rhf8 {[%clk 0:01:50]} 23. Rcf1 {[%clk 0:02:31.3]} 23... Rde8 {[%clk 0:01:45.4]}
24. b3 {[%clk 0:02:24.3]} 24... a5 {[%clk 0:01:42.2]} 25. c4 {[%clk 0:02:24.5]}
25... dxc4 {[%clk 0:01:06.7]} 26. bxc4 {[%clk 0:02:24.6]} 26... Nf5 {[%clk
0:00:56.6]} 27. c5+ {[%clk 0:02:09.3]} 27... Kc7 {[%clk 0:00:55.6]} 28. Nxg6
{[%clk 0:02:02.7]} 28... Nxe3 {[%clk 0:00:54]} 29. Rxf8 {[%clk 0:01:57.1]} 29...
Nc4+ {[%clk 0:00:51.7]} 30. Kd3 {[%clk 0:01:57.9]} 30... Nxf8 {[%clk 0:00:52.9]}
31. Nxf8 {[%clk 0:01:55.7]} 31... Rxf8 {[%clk 0:00:53.3]} 32. Rxh5 {[%clk
0:01:57]} 32... Rg8 {[%clk 0:00:51]} 33. e4 {[%clk 0:01:51.5]} 33... a4 {[%clk
0:00:49.9]} 34. d5 {[%clk 0:01:49.7]} 34... Ne5+ {[%clk 0:00:49.2]} 35. Kc3
{[%clk 0:01:40]} 35... Nf3 {[%clk 0:00:41.6]} 36. Rh7+ {[%clk 0:01:39.5]} 36...
Kc8 {[%clk 0:00:41.9]} 37. dxc6 {[%clk 0:01:38.9]} 37... Nxg5 {[%clk 0:00:42.1]}
38. Ra7 {[%clk 0:01:34.3]} 38... Kb8 {[%clk 0:00:41.4]} 39. Rb7+ {[%clk
0:01:34.2]} 39... Kc8 {[%clk 0:00:42.2]} 40. Kb4 {[%clk 0:01:25.8]} 40... Nxe4
{[%clk 0:00:39.6]} 41. Rxb5 {[%clk 0:01:17.7]} 41... Rg5 {[%clk 0:00:35.3]} 42.
Kxa4 {[%clk 0:01:08.7]} 42... Rxc5 {[%clk 0:00:26.6]} 43. Rxc5 {[%clk
0:01:08.1]} 43... Nxc5+ {[%clk 0:00:27.6]} 44. Kb5 {[%clk 0:01:08.7]} 44... Ne6
{[%clk 0:00:26.8]} 45. a4 {[%clk 0:01:08.4]} 45... Kc7 {[%clk 0:00:27.7]} 46. a5
{[%clk 0:01:09.1]} 46... Nd4+ {[%clk 0:00:27.3]} 1/2-1/2

[Event "*** Titled Tuesday Blitz"]
[Site "Chess.com"]
[Date "2018.08.07"]
[Round "7"]
[White "ahmadzada13"]
[Black "Supernotar"]
[Result "1-0"]
[WhiteElo "2650"]
[BlackElo "2464"]
[TimeControl "180+2"]
[EndTime "14:33:15 PDT"]
[Termination "ahmadzada13 won by checkmate"]

1. d4 {[%clk 0:03:01.9]} 1... d5 {[%clk 0:03:00.5]} 2. c4 {[%clk 0:03:02.8]}
2... dxc4 {[%clk 0:03:01.3]} 3. Nf3 {[%clk 0:03:02.4]} 3... Nf6 {[%clk
0:03:01.9]} 4. e3 {[%clk 0:03:03.6]} 4... e6 {[%clk 0:03:02.7]} 5. Bxc4 {[%clk
0:03:04.2]} 5... a6 {[%clk 0:03:03.2]} 6. O-O {[%clk 0:03:04.6]} 6... b5 {[%clk
0:03:04.1]} 7. Bb3 {[%clk 0:03:05.5]} 7... Bb7 {[%clk 0:03:04.9]} 8. a4 {[%clk
0:03:06.6]} 8... b4 {[%clk 0:03:05.7]} 9. Nbd2 {[%clk 0:03:05.7]} 9... Nbd7
{[%clk 0:03:06.5]} 10. Nc4 {[%clk 0:03:06.6]} 10... c5 {[%clk 0:03:07.2]} 11.
Qe2 {[%clk 0:03:00.1]} 11... Qc7 {[%clk 0:03:07.7]} 12. Nce5 {[%clk 0:02:53.2]}
12... Be7 {[%clk 0:02:41.1]} 13. e4 {[%clk 0:01:58.5]} 13... Bxe4 {[%clk
0:01:52.6]} 14. Nxf7 {[%clk 0:01:51.3]} 14... Bxf3 {[%clk 0:01:43.1]} 15. gxf3
{[%clk 0:01:37.9]} 15... Kxf7 {[%clk 0:01:32.8]} 16. Qxe6+ {[%clk 0:01:36.8]}
16... Ke8 {[%clk 0:01:32.6]} 17. Re1 {[%clk 0:01:32]} 17... Nf8 {[%clk
0:01:10.9]} 18. Qf7+ {[%clk 0:01:27.7]} 18... Kd8 {[%clk 0:01:11.9]} 19. Qxg7
{[%clk 0:01:06.9]} 19... c4 {[%clk 0:00:39]} 20. Bxc4 {[%clk 0:00:55]} 20... Ng6
{[%clk 0:00:29.7]} 21. Bg5 {[%clk 0:00:52.8]} 21... Rf8 {[%clk 0:00:16]} 22. Re6
{[%clk 0:00:42.2]} 22... Qxc4 {[%clk 0:00:09.8]} 23. Rxe7 {[%clk 0:00:39]} 23...
Nxe7 {[%clk 0:00:06.5]} 24. Qxf8+ {[%clk 0:00:37.2]} 24... Kd7 {[%clk
0:00:05.1]} 25. Qxf6 {[%clk 0:00:37.3]} 25... Nd5 {[%clk 0:00:03.2]} 26. Qf7+
{[%clk 0:00:32.9]} 26... Kd6 {[%clk 0:00:04.2]} 27. Bf4+ {[%clk 0:00:32.2]}
27... Nxf4 {[%clk 0:00:04.8]} 28. Qxc4 {[%clk 0:00:32.3]} 28... Rf8 {[%clk
0:00:04.8]} 29. Qc5+ {[%clk 0:00:32.7]} 29... Kd7 {[%clk 0:00:06]} 30. Qxf8
{[%clk 0:00:34.2]} 30... Ne2+ {[%clk 0:00:07.2]} 31. Kf1 {[%clk 0:00:35]} 31...
b3 {[%clk 0:00:09.1]} 32. Kxe2 {[%clk 0:00:35.7]} 32... Kc6 {[%clk 0:00:10.1]}
33. Rg1 {[%clk 0:00:37.3]} 33... a5 {[%clk 0:00:10.7]} 34. Rg7 {[%clk
0:00:38.5]} 34... Kd5 {[%clk 0:00:12.2]} 35. Qc5+ {[%clk 0:00:39.7]} 35... Ke6
{[%clk 0:00:13.5]} 36. Re7+ {[%clk 0:00:40.4]} 36... Kf6 {[%clk 0:00:14.8]} 37.
Qe5+ {[%clk 0:00:42.1]} 37... Kg6 {[%clk 0:00:16.4]} 38. Rg7+ {[%clk 0:00:43.6]}
38... Kh6 {[%clk 0:00:18]} 39. Qg5# {[%clk 0:00:45]} 1-0

[Event "*** Titled Tuesday Blitz"]
[Site "Chess.com"]
[Date "2018.08.07"]
[Round "7"]
[White "DACF2905"]
[Black "tomsishere"]
[Result "1-0"]
[WhiteElo "2108"]
[BlackElo "2314"]
[TimeControl "180+2"]
[EndTime "14:33:33 PDT"]
[Termination "DACF2905 won by checkmate"]

1. e4 {[%clk 0:03:01.9]} 1... c5 {[%clk 0:03:00]} 2. Nf3 {[%clk 0:03:02.2]} 2...
d6 {[%clk 0:02:59.9]} 3. d4 {[%clk 0:03:03.1]} 3... cxd4 {[%clk 0:03:00.2]} 4.
Nxd4 {[%clk 0:03:04.6]} 4... Nf6 {[%clk 0:03:01.6]} 5. Nc3 {[%clk 0:03:05.5]}
5... a6 {[%clk 0:03:02.3]} 6. Bg5 {[%clk 0:03:06.1]} 6... Nbd7 {[%clk
0:03:02.3]} 7. Qe2 {[%clk 0:03:06.1]} 7... h6 {[%clk 0:02:59.5]} 8. Bxf6 {[%clk
0:03:06.3]} 8... Nxf6 {[%clk 0:02:58.8]} 9. O-O-O {[%clk 0:03:07.8]} 9... e5
{[%clk 0:02:51.7]} 10. Nf5 {[%clk 0:03:07.9]} 10... g6 {[%clk 0:02:50.2]} 11.
Ne3 {[%clk 0:03:07.7]} 11... Be7 {[%clk 0:02:48.1]} 12. f3 {[%clk 0:03:07.4]}
12... Be6 {[%clk 0:02:47.9]} 13. Ncd5 {[%clk 0:03:07.3]} 13... Nxd5 {[%clk
0:02:41.6]} 14. Nxd5 {[%clk 0:03:04.7]} 14... O-O {[%clk 0:02:40.8]} 15. Kb1
{[%clk 0:03:01.7]} 15... b5 {[%clk 0:02:36]} 16. Nxe7+ {[%clk 0:03:02.2]} 16...
Qxe7 {[%clk 0:02:35.5]} 17. Qd2 {[%clk 0:03:03.3]} 17... Kg7 {[%clk 0:02:28.4]}
18. h4 {[%clk 0:03:01.9]} 18... Rfd8 {[%clk 0:02:24.3]} 19. h5 {[%clk
0:03:01.8]} 19... g5 {[%clk 0:02:23.8]} 20. g3 {[%clk 0:03:01.8]} 20... d5
{[%clk 0:02:22.7]} 21. Bd3 {[%clk 0:03:01.2]} 21... dxe4 {[%clk 0:02:20.1]} 22.
fxe4 {[%clk 0:03:02.3]} 22... Rd4 {[%clk 0:02:17.8]} 23. c3 {[%clk 0:03:00.6]}
23... Rd7 {[%clk 0:02:15.7]} 24. Qe3 {[%clk 0:02:59.8]} 24... Rad8 {[%clk
0:02:13.3]} 25. Bc2 {[%clk 0:03:00.6]} 25... Bg4 {[%clk 0:02:01.2]} 26. Rxd7
{[%clk 0:02:57.9]} 26... Qxd7 {[%clk 0:02:01.6]} 27. Qc5 {[%clk 0:02:53.5]}
27... Qd6 {[%clk 0:02:01.1]} 28. Qe3 {[%clk 0:02:38.4]} 28... Qd2 {[%clk
0:01:58.3]} 29. Qc5 {[%clk 0:02:38.8]} 29... Qd6 {[%clk 0:01:36.7]} 30. Qe3
{[%clk 0:02:38.4]} 30... a5 {[%clk 0:01:37.2]} 31. a3 {[%clk 0:02:38.2]} 31...
b4 {[%clk 0:01:37.3]} 32. axb4 {[%clk 0:02:38.2]} 32... axb4 {[%clk 0:01:37.3]}
33. cxb4 {[%clk 0:02:32.5]} 33... Qxb4 {[%clk 0:01:36.8]} 34. Qc3 {[%clk
0:02:33.3]} 34... Qd6 {[%clk 0:01:31.1]} 35. Bb3 {[%clk 0:02:06.6]} 35... Qf6
{[%clk 0:01:13.2]} 36. Qc7 {[%clk 0:01:54.9]} 36... Bf3 {[%clk 0:01:09.5]} 37.
Re1 {[%clk 0:01:51.8]} 37... Rd4 {[%clk 0:00:56.1]} 38. Bd5 {[%clk 0:01:49.8]}
38... g4 {[%clk 0:00:30.4]} 39. Qb7 {[%clk 0:01:39.2]} 39... Rd2 {[%clk
0:00:20.6]} 40. Rc1 {[%clk 0:01:35.4]} 40... Be2 {[%clk 0:00:13.7]} 41. Rc6
{[%clk 0:01:26.1]} 41... Qf1+ {[%clk 0:00:09.3]} 42. Ka2 {[%clk 0:01:24.8]}
42... Bd3 {[%clk 0:00:10.7]} 43. Rg6+ {[%clk 0:01:15.6]} 43... Kf8 {[%clk
0:00:06]} 44. Qb8+ {[%clk 0:01:12]} 44... Ke7 {[%clk 0:00:06.1]} 45. Qxe5+
{[%clk 0:01:12.7]} 45... Kf8 {[%clk 0:00:07.1]} 46. Qd6+ {[%clk 0:01:09.7]}
46... Ke8 {[%clk 0:00:07.1]} 47. Rg8# {[%clk 0:01:10.6]} 1-0

[Event "*** Titled Tuesday Blitz"]
[Site "Chess.com"]
[Date "2018.08.07"]
[Round "7"]
[White "ChrisTool2"]
[Black "CookiesAndIceCream"]
[Result "1-0"]
[WhiteElo "2254"]
[BlackElo "2249"]
[TimeControl "180+2"]
[EndTime "14:33:34 PDT"]
[Termination "ChrisTool2 won by checkmate"]

1. Nf3 {[%clk 0:03:01.9]} 1... d5 {[%clk 0:03:00.3]} 2. g3 {[%clk 0:03:01.3]}
2... Nf6 {[%clk 0:03:00.2]} 3. Bg2 {[%clk 0:03:02.6]} 3... c6 {[%clk 0:03:01.4]}
4. O-O {[%clk 0:03:03.3]} 4... Bg4 {[%clk 0:03:02.6]} 5. d3 {[%clk 0:03:04.1]}
5... Nbd7 {[%clk 0:03:03.9]} 6. Nbd2 {[%clk 0:03:04.7]} 6... e5 {[%clk
0:03:05.2]} 7. e4 {[%clk 0:03:00.4]} 7... Bd6 {[%clk 0:03:02.8]} 8. Qe1 {[%clk
0:02:58.7]} 8... O-O {[%clk 0:03:03.6]} 9. h3 {[%clk 0:02:53.2]} 9... Bh5 {[%clk
0:03:04.9]} 10. Nh4 {[%clk 0:02:49.9]} 10... Re8 {[%clk 0:03:06.2]} 11. Nf5
{[%clk 0:02:04.3]} 11... Bf8 {[%clk 0:03:06.3]} 12. g4 {[%clk 0:01:48.1]} 12...
Bg6 {[%clk 0:03:06.8]} 13. Nf3 {[%clk 0:01:46.1]} 13... dxe4 {[%clk 0:03:06.2]}
14. dxe4 {[%clk 0:01:46.7]} 14... Qc7 {[%clk 0:02:57]} 15. Bg5 {[%clk
0:01:39.4]} 15... Bxf5 {[%clk 0:02:28.8]} 16. gxf5 {[%clk 0:01:30.4]} 16... h6
{[%clk 0:02:17.4]} 17. Bh4 {[%clk 0:01:27.6]} 17... Nh5 {[%clk 0:02:14]} 18. Rd1
{[%clk 0:01:15.7]} 18... Nf4 {[%clk 0:02:08.2]} 19. Bg3 {[%clk 0:00:59.9]} 19...
Nxg2 {[%clk 0:01:56.7]} 20. Kxg2 {[%clk 0:01:01.8]} 20... Rad8 {[%clk
0:01:39.7]} 21. Qc3 {[%clk 0:00:58.1]} 21... Bd6 {[%clk 0:01:20.8]} 22. Rd2
{[%clk 0:00:52.4]} 22... Nc5 {[%clk 0:01:21.8]} 23. Qe3 {[%clk 0:00:36]} 23...
a5 {[%clk 0:01:19.2]} 24. Rfd1 {[%clk 0:00:36.2]} 24... f6 {[%clk 0:01:05.6]}
25. Nh4 {[%clk 0:00:30.7]} 25... b6 {[%clk 0:00:55.8]} 26. Ng6 {[%clk 0:00:31]}
26... Kh7 {[%clk 0:00:55.2]} 27. a3 {[%clk 0:00:29.3]} 27... Be7 {[%clk
0:00:46.7]} 28. b4 {[%clk 0:00:25.1]} 28... axb4 {[%clk 0:00:44.4]} 29. axb4
{[%clk 0:00:27]} 29... Na4 {[%clk 0:00:45.7]} 30. Qb3 {[%clk 0:00:25.9]} 30...
b5 {[%clk 0:00:46.1]} 31. Qf7 {[%clk 0:00:19.7]} 31... Bd6 {[%clk 0:00:41.5]}
32. Qxc7 {[%clk 0:00:16.1]} 32... Bxc7 {[%clk 0:00:42.3]} 33. Rd7 {[%clk
0:00:16.6]} 33... Rxd7 {[%clk 0:00:33.5]} 34. Rxd7 {[%clk 0:00:18.5]} 34... Bb6
{[%clk 0:00:31.7]} 35. Bh4 {[%clk 0:00:19.5]} 35... Rd8 {[%clk 0:00:31.5]} 36.
Rb7 {[%clk 0:00:17.8]} 36... Rd2 {[%clk 0:00:31.5]} 37. Nf8+ {[%clk 0:00:15.3]}
37... Kg8 {[%clk 0:00:31.8]} 38. Ne6 {[%clk 0:00:17.2]} 38... Rxc2 {[%clk
0:00:28]} 39. Rxg7+ {[%clk 0:00:17.7]} 39... Kh8 {[%clk 0:00:29.1]} 40. Bxf6
{[%clk 0:00:18.1]} 40... Rxf2+ {[%clk 0:00:29.8]} 41. Kg3 {[%clk 0:00:18.9]}
41... Rf1 {[%clk 0:00:29]} 42. Rg6+ {[%clk 0:00:15]} 42... Kh7 {[%clk 0:00:29]}
43. Nf8# {[%clk 0:00:16.9]} 1-0

[Event "*** Titled Tuesday Blitz"]
[Site "Chess.com"]
[Date "2018.08.07"]
[Round "7"]
[White "Margency"]
[Black "GadimbayliA"]
[Result "0-1"]
[WhiteElo "2721"]
[BlackElo "2713"]
[TimeControl "180+2"]
[EndTime "14:33:48 PDT"]
[Termination "GadimbayliA won by resignation"]

1. d4 {[%clk 0:03:01.9]} 1... e6 {[%clk 0:03:00.1]} 2. Nf3 {[%clk 0:03:01.4]}
2... Nf6 {[%clk 0:03:00.5]} 3. Bf4 {[%clk 0:03:00.9]} 3... b6 {[%clk 0:03:01.4]}
4. Nc3 {[%clk 0:02:56.5]} 4... Bb7 {[%clk 0:02:59.7]} 5. e3 {[%clk 0:02:57.3]}
5... Be7 {[%clk 0:02:58.4]} 6. Bd3 {[%clk 0:02:55.1]} 6... d5 {[%clk 0:02:58.1]}
7. Nb5 {[%clk 0:02:50.4]} 7... Na6 {[%clk 0:02:53.2]} 8. Ne5 {[%clk 0:02:39.8]}
8... c6 {[%clk 0:02:46]} 9. Nc3 {[%clk 0:02:38.6]} 9... Nc7 {[%clk 0:02:43.9]}
10. g4 {[%clk 0:02:26.8]} 10... h6 {[%clk 0:02:32.1]} 11. h4 {[%clk 0:02:20.7]}
11... Nd7 {[%clk 0:02:27.1]} 12. Qf3 {[%clk 0:02:17.2]} 12... Nxe5 {[%clk
0:02:25.1]} 13. Bxe5 {[%clk 0:02:17.9]} 13... Bf6 {[%clk 0:02:26]} 14. Bf4
{[%clk 0:02:10.6]} 14... Qe7 {[%clk 0:02:20.8]} 15. O-O-O {[%clk 0:02:00.8]}
15... e5 {[%clk 0:02:17.9]} 16. dxe5 {[%clk 0:01:53.4]} 16... Bxe5 {[%clk
0:02:13.3]} 17. g5 {[%clk 0:01:53.9]} 17... Bxc3 {[%clk 0:02:06.8]} 18. bxc3
{[%clk 0:01:54.6]} 18... Ne6 {[%clk 0:02:07.3]} 19. gxh6 {[%clk 0:01:46.2]}
19... Nxf4 {[%clk 0:02:08]} 20. exf4 {[%clk 0:01:45.3]} 20... Qa3+ {[%clk
0:01:49.6]} 21. Kd2 {[%clk 0:01:45.5]} 21... Rxh6 {[%clk 0:01:49.6]} 22. Rde1+
{[%clk 0:01:43.3]} 22... Kf8 {[%clk 0:01:48.5]} 23. Rhg1 {[%clk 0:01:32.4]}
23... Qd6 {[%clk 0:01:29.4]} 24. Re5 {[%clk 0:01:24.3]} 24... d4 {[%clk
0:01:23.2]} 25. cxd4 {[%clk 0:01:20.8]} 25... Qxd4 {[%clk 0:01:02.6]} 26. a3
{[%clk 0:01:08.8]} 26... Rxh4 {[%clk 0:00:45.8]} 27. Rf5 {[%clk 0:00:22.3]}
27... Rh2 {[%clk 0:00:27.4]} 28. Rf1 {[%clk 0:00:20.3]} 28... Rd8 {[%clk
0:00:23.2]} 29. Qg3 {[%clk 0:00:20.9]} 29... Rh6 {[%clk 0:00:19.9]} 30. Rg5
{[%clk 0:00:20.1]} 30... Ba6 {[%clk 0:00:18.9]} 31. Rg1 {[%clk 0:00:20.4]} 31...
Bxd3 {[%clk 0:00:18.1]} 32. cxd3 {[%clk 0:00:18.7]} 32... Qb2+ {[%clk 0:00:19]}
33. Ke1 {[%clk 0:00:19.3]} 33... Qc1+ {[%clk 0:00:18.5]} 34. Ke2 {[%clk
0:00:20.2]} 34... Qc2+ {[%clk 0:00:19.2]} 35. Kf1 {[%clk 0:00:19.6]} 35... Rxd3
{[%clk 0:00:16]} 36. Qg4 {[%clk 0:00:19.7]} 36... Rd1+ {[%clk 0:00:15.3]} 37.
Kg2 {[%clk 0:00:20.8]} 37... Qe4+ {[%clk 0:00:13.4]} 0-1